bitfinex-derivatives/quotes_SOLF0:USTF0_20250823
["timestamp","ask_amount","ask_price","bid_price","bid_amount"]
[1755967146427,5.08671939,203.0,202.98,4.9281]
[1755967146623,5.08671939,203.0,202.99,6.63900812]
[1755967147828,5.08671939,203.0,202.98,7.5381]
[1755967148028,5.08671939,203.0,202.99,6.63877337]
[1755967149933,5.08671939,203.0,202.99,4.68376212]
[1755967151535,5.08671939,203.08,203.0,2.61]
[1755967151736,125.30671939,203.08,203.01,6.63832148]
[1755967151933,125.30671939,203.08,203.05,4.9264]
[1755967152540,125.30671939,203.08,203.03,7.537]
[1755967152731,125.30671939,203.08,203.03,4.927]
[1755967154439,120.22,203.08,203.03,4.927]
[1755967154734,120.22,203.08,203.04,4.9267]
[1755967157136,336.1454,203.1,203.04,4.9267]
[1755967157336,120.2,203.07,203.04,4.9267]
[1755967158631,120.2,203.07,203.04,7.5367]
[1755967159136,336.1454,203.1,203.04,7.5367]
[1755967159335,120.2,203.09,203.04,7.5367]
[1755967160136,120.2,203.09,203.04,4.9267]
[1755967164940,4.9254,203.1,203.04,4.9267]
[1755967165240,120.18,203.08,203.04,4.9267]
[1755967165439,120.18,203.07,203.04,4.9267]
[1755967166139,4.9254,203.1,203.04,4.9267]
[1755967166338,120.18,203.09,203.04,4.9267]
[1755967168535,4.9254,203.1,203.04,4.9267]
[1755967168839,120.18,203.09,203.04,4.9267]
[1755967169541,120.18,203.09,202.97,2.61]
[1755967169542,7.94801617,203.08,202.97,2.61]
[1755967170135,4.9267,203.05,202.99,4.9279]
[1755967170341,120.18,203.04,203.0,2.61]
[1755967170544,120.18,203.04,202.99,4.9279]
[1755967170849,120.18,203.04,203.01,2.61]
[1755967173852,120.18,203.04,202.99,4.9279]
[1755967174051,120.18,203.04,203.0,2.57]
[1755967174444,120.18,203.04,202.99,4.9279]
[1755967174445,5.08967993,203.01,202.97,2.57]
[1755967175048,5.08967993,203.01,202.98,4.68856496]
[1755967175247,5.08967993,202.99,202.98,2.57]
[1755967175446,5.08967993,202.99,202.98,7.25794571]
[1755967176454,5.08967993,203.01,202.98,11.57083783]
[1755967176751,5.08967993,203.01,202.99,2.57]
[1755967177750,5.08967993,203.02,203.0,2.57]
[1755967178653,5.08967993,203.02,202.99,7.4979]
[1755967184958,5.08967993,203.02,203.0,2.57]
[1755967185259,5.08967993,203.02,202.99,4.9279]
[1755967185460,5.08967993,203.02,202.99,7.4979]
[1755967186662,120.18,203.04,203.0,2.57]
[1755967186862,5.08967993,203.01,203.0,2.57]
[1755967192167,120.18,203.04,203.0,7.4977]
[1755967192363,5.08967993,203.01,203.0,7.4977]
[1755967194569,5.08967993,203.01,202.98,4.9282]
[1755967194770,5.08967993,203.01,202.99,2.57]
[1755967195373,5.08967993,203.01,202.99,7.4979]
[1755967195972,5.08967993,203.01,202.99,4.9279]
[1755967196173,5.08967993,203.01,202.99,7.4979]
[1755967198473,5.08967993,203.01,203.0,2.57]
[1755967199175,120.18,203.04,203.0,2.57]
[1755967199374,5.08967993,203.01,203.0,2.57]
[1755967201679,501.21323686,203.16,203.0,9.22905088]
[1755967201883,501.21323686,203.16,202.99,24.6401]
[1755967201884,5.08967993,203.05,203.02,2.57]
[1755967202078,5.08967993,203.05,203.03,2.57]
[1755967202382,5.08967993,203.05,203.04,2.57]
[1755967205184,120.16,203.06,203.04,7.4967]
[1755967205383,5.08967993,203.05,203.04,7.4967]
[1755967206684,5.08967993,203.05,202.98,2.82]
[1755967206982,5.08967993,203.03,203.01,2.82]
[1755967207182,5.08967993,203.03,203.02,2.82]
[1755967208781,5.08967993,203.05,203.03,2.82]
[1755967211988,5.08967993,203.05,203.02,4.9271]
[1755967212388,5.08967993,203.05,203.03,4.8993124]
[1755967212686,5.08967993,203.05,203.02,7.7471]
[1755967212885,5.08967993,203.05,203.03,4.89921185]
[1755967213084,5.08967993,203.05,203.02,7.7471]
[1755967213284,5.08967993,203.05,203.03,4.89921185]
[1755967213582,5.08967993,203.05,203.02,4.9271]
[1755967213777,5.08967993,203.05,203.03,4.89950536]
[1755967213985,5.08967993,203.05,203.02,4.9271]
[1755967214185,5.08967993,203.05,203.03,4.89950536]
[1755967214387,5.08967993,203.05,203.02,4.9271]
[1755967214590,5.08967993,203.05,203.03,4.89986073]
[1755967214889,5.08967993,203.05,203.02,7.7471]
[1755967215086,5.08967993,203.03,203.02,7.7471]
[1755967215586,5.08967993,203.03,203.02,12.64681991]
[1755967217486,5.08967993,203.03,203.02,4.89971991]
[1755967217691,5.08967993,203.03,203.0,4.9276]
[1755967217886,5.08967993,203.03,203.01,7.71985929]
[1755967218093,5.08967993,203.03,203.01,2.82]
[1755967218486,5.08967993,203.03,202.99,2.82]
[1755967218691,5.08967993,203.03,203.0,4.89989316]
[1755967218882,0.85672083,203.2,202.92,5.08967993]
[1755967219083,5.08967993,203.05,202.94,16.27989495]
[1755967219290,125.20967993,203.05,202.95,11.19021502]
[1755967219489,125.20967993,203.05,202.97,2.82]
[1755967219688,125.20967993,203.05,203.03,7.7469]
[1755967219893,125.20967993,203.05,203.04,7.7192649]
[1755967220993,125.20967993,203.05,203.04,4.8992649]
[1755967221392,125.20967993,203.05,203.04,4.89889908]
[1755967221888,5.08967993,203.05,203.04,4.89889908]
[1755967222095,5.08967993,203.05,203.04,7.71889908]
[1755967222288,126.76155161,203.11,203.05,2.82]
[1755967222289,120.12,203.07,203.05,2.82]
[1755967222590,120.12,203.07,203.0,24.6391]
[1755967222591,120.12,203.07,203.06,2.82]
[1755967223392,120.12,203.07,203.06,7.7463]
[1755967224293,120.12,203.07,203.05,2.82]
[1755967225191,120.12,203.07,203.06,2.82]
[1755967226795,120.12,203.07,203.05,4.9264]
[1755967226982,120.12,203.07,203.05,7.7464]
[1755967229588,120.12,203.07,203.06,4.90865263]
[1755967229784,120.1,203.07,203.06,4.90865263]
[1755967231596,5.08967993,203.09,203.06,4.90865263]
[1755967231796,120.1,203.08,203.05,4.9264]
[1755967231993,120.1,203.08,203.06,9.83420445]
[1755967232193,120.1,203.08,203.06,7.7461]
[1755967232394,120.1,203.08,203.07,2.82]
[1755967232596,120.1,203.08,203.06,4.9261]
[1755967233199,5.08967993,203.1,203.06,4.9261]
[1755967233498,120.08,203.09,203.06,4.9261]
[1755967234402,120.08,203.09,203.06,7.5861]
[1755967238897,120.08,203.09,203.06,4.9261]
[1755967241502,120.08,203.09,203.04,4.9267]
[1755967241702,120.08,203.09,203.05,4.90884654]
[1755967241902,120.08,203.09,203.03,2.66]
[1755967242099,120.08,203.09,203.04,9.51885241]
[1755967242303,120.08,203.09,203.05,6.85898772]
[1755967242603,125.16967993,203.08,203.06,4.90911104]
[1755967242803,125.16967993,203.08,203.07,4.90911104]
[1755967244901,125.16967993,203.08,203.07,4.91069203]
[1755967246507,120.08,203.08,203.07,4.91069203]
[1755967248208,120.08,203.08,203.07,4.91116962]
[1755967250708,120.06,203.08,203.07,9.83706962]
[1755967252409,120.06,203.08,203.07,4.9259]
[1755967252610,5.08967993,203.1,203.07,4.9259]
[1755967252806,120.06,203.09,203.07,4.9259]
[1755967254106,5.08967993,203.1,203.07,4.9259]
[1755967254406,120.06,203.09,203.08,2.66]
[1755967254610,0.8569951,203.12,203.09,4.9255]
[1755967254907,120.06,203.11,203.09,4.9255]
[1755967258113,0.8569951,203.12,203.1,4.9252]
[1755967258411,120.06,203.11,203.1,4.9252]
[1755967261514,0.8569951,203.12,203.1,4.9252]
[1755967261712,120.04,203.11,203.1,4.9252]
[1755967262314,125.12967993,203.11,203.1,4.9252]
[1755967262515,125.12967993,203.11,203.08,4.9257]
[1755967262716,125.12967993,203.11,203.05,2.66]
[1755967262915,125.12967993,203.11,203.06,6.79974811]
[1755967263115,120.04,203.11,203.07,4.8519004]
[1755967263317,120.04,203.11,203.09,4.9254]
[1755967263521,120.04,203.11,203.09,7.5354]
[1755967264819,120.04,203.11,203.09,4.9254]
[1755967265010,0.8569951,203.12,203.06,24.6316]
[1755967265216,129.39596564,203.16,203.1,24.6268]
[1755967265409,249.43596564,203.16,203.12,2.61]
[1755967265719,129.39596564,203.16,203.14,2.61]
[1755967265921,129.39596564,203.16,203.15,4.85411996]
[1755967266917,129.39596564,203.16,203.15,5.2836797]
[1755967268123,249.43596564,203.16,203.12,4.9248]
[1755967268318,5.08967993,203.15,203.13,5.28042186]
[1755967268522,5.08967993,203.15,203.14,5.28042186]
[1755967270623,125.12967993,203.15,203.14,5.28042186]
[1755967272222,125.10967993,203.15,203.14,5.28042186]
[1755967273121,125.10967993,203.15,203.11,4.925]
[1755967273422,125.10967993,203.15,203.12,5.27864291]
[1755967273623,125.10967993,203.15,203.13,5.27864291]
[1755967273824,125.10967993,203.15,203.12,4.9247]
[1755967273825,125.10967993,203.15,203.14,5.27864291]
[1755967274220,5.08967993,203.15,203.14,5.27864291]
[1755967274424,125.10967993,203.15,203.14,5.27864291]
[1755967281731,125.10967993,203.15,203.14,5.27757038]
[1755967283132,125.10967993,203.15,203.14,5.30652422]
[1755967283833,125.10967993,203.15,203.14,5.30634806]
[1755967287539,125.10967993,203.15,203.12,4.9247]
[1755967287734,125.10967993,203.15,203.13,5.30679312]
[1755967287934,125.10967993,203.15,203.12,4.9247]
[1755967288137,125.10967993,203.15,203.13,5.30679312]
[1755967288337,125.10967993,203.15,203.12,4.9247]
[1755967288637,125.10967993,203.15,203.13,5.30703655]
[1755967288840,125.10967993,203.15,203.12,4.9247]
[1755967289140,125.10967993,203.15,203.13,5.30703662]
[1755967289341,125.10967993,203.15,203.14,5.30703662]
[1755967291443,125.10967993,203.15,203.08,4.9257]
[1755967291740,125.10967993,203.15,203.08,2.61]
[1755967291741,5.08967993,203.11,203.08,2.61]
[1755967291940,125.08967993,203.11,203.08,2.61]
[1755967292541,125.08967993,203.11,203.09,4.9255]
[1755967293043,125.08967993,203.11,203.09,7.5355]
[1755967294140,125.08967993,203.11,203.09,4.9255]
[1755967295045,125.08967993,203.11,203.09,7.5155]
[1755967297649,120.0,203.11,203.07,4.9259]
[1755967297853,5.08967993,203.1,203.07,4.9259]
[1755967298051,5.08967993,203.08,203.07,4.9259]
[1755967298251,5.08967993,203.08,203.05,4.9264]
[1755967298943,5.08967993,203.08,203.03,4.927]
[1755967299142,120.0,203.07,203.03,4.927]
[1755967299443,5.08967993,203.06,203.03,4.927]
[1755967299645,5.08967993,203.06,203.03,7.517]
[1755967301243,5.08967993,203.06,203.03,4.927]
[1755967302760,5.08967993,203.06,203.04,1.94659633]
[1755967302950,5.08967993,203.06,203.03,4.927]
[1755967303151,5.08967993,203.06,203.04,1.94589782]
[1755967303353,5.08967993,203.06,203.03,4.927]
[1755967303648,5.08967993,203.06,203.04,6.97317948]
[1755967303850,5.08967993,203.06,203.05,5.02774245]
[1755967305959,5.08967993,203.06,203.05,5.0264374]
[1755967312464,5.08967993,203.06,203.05,5.02153848]
[1755967313062,125.10967993,203.06,203.02,2.59]
[1755967313265,125.10967993,203.06,203.03,7.59353491]
[1755967313464,125.10967993,203.06,203.04,5.00353491]
[1755967313664,125.10967993,203.06,203.03,2.59]
[1755967313967,125.10967993,203.06,203.04,5.00353491]
[1755967314266,125.10967993,203.06,203.03,2.59]
[1755967314566,125.10967993,203.06,203.04,5.00298095]
[1755967314760,125.10967993,203.06,203.03,2.59]
[1755967314967,125.10967993,203.06,203.04,5.00351047]
[1755967315165,125.10967993,203.06,203.03,2.59]
[1755967315368,125.10967993,203.06,203.04,5.00312853]
[1755967315667,125.10967993,203.06,203.03,2.59]
[1755967315866,125.10967993,203.06,203.04,5.00334272]
[1755967316165,125.10967993,203.06,203.03,2.59]
[1755967316360,125.10967993,203.06,203.04,5.00304092]
[1755967316558,125.10967993,203.06,203.03,2.59]
[1755967316758,125.10967993,203.06,203.04,5.00303525]
[1755967316961,125.10967993,203.06,203.03,2.59]
[1755967317169,125.10967993,203.06,203.04,5.00282107]
[1755967317368,125.10967993,203.06,203.03,2.59]
[1755967317668,125.10967993,203.06,203.04,5.0028043]
[1755967317867,125.10967993,203.06,203.03,2.59]
[1755967318058,120.02,203.06,203.04,5.00318532]
[1755967318262,120.02,203.06,203.03,2.59]
[1755967318459,120.02,203.06,203.04,5.00343854]
[1755967318663,120.02,203.06,203.03,2.59]
[1755967319169,5.08967993,203.04,203.03,2.59]
[1755967319369,5.08967993,203.04,203.03,7.59360874]
[1755967320376,4.9256,203.09,203.03,12.52050874]
[1755967320576,5.08967993,203.05,203.04,5.00328995]
[1755967321477,5.08967993,203.05,203.03,7.5169]
[1755967321679,120.02,203.04,203.03,7.5169]
[1755967321874,120.02,203.04,203.03,12.52050158]
[1755967324880,120.02,203.04,203.03,14.4624369]
[1755967327974,120.02,203.04,203.03,6.9455369]
[1755967328878,125.10967993,203.04,203.03,6.9455369]
[1755967329083,125.10967993,203.04,203.03,5.00360158]
[1755967329282,125.10967993,203.04,202.99,4.9279]
[1755967329479,5.08967993,203.01,203.0,1.94402085]
[1755967330981,5.08967993,203.01,202.98,4.9281]
[1755967331189,5.08967993,203.01,202.99,1.94442529]
[1755967331387,5.08967993,203.01,202.98,7.5181]
[1755967331580,5.08967993,203.01,202.99,1.9448145]
[1755967331780,5.08967993,203.01,202.98,7.5181]
[1755967331981,5.08967993,203.01,202.99,4.53481676]
[1755967332182,5.08967993,203.01,202.99,2.59]
[1755967333585,5.08967993,203.02,203.0,4.5344928]
[1755967333792,120.0,203.03,203.01,1.94435162]
[1755967333986,125.08967993,203.03,203.0,2.59]
[1755967334186,5.08967993,203.03,203.01,1.94405332]
[1755967334389,5.08967993,203.03,203.0,2.59]
[1755967334588,5.08967993,203.03,203.01,1.94437397]
[1755967334790,5.08967993,203.03,203.0,2.59]
[1755967334995,5.08967993,203.03,203.01,1.94437397]
[1755967335191,5.08967993,203.03,203.0,2.59]
[1755967335392,5.08967993,203.03,203.01,1.94483898]
[1755967335593,5.08967993,203.03,203.0,2.59]
[1755967335892,5.08967993,203.03,203.01,1.94483898]
[1755967336097,5.08967993,203.03,203.02,1.94540908]
[1755967336284,5.08967993,203.04,203.02,4.53540908]
[1755967336592,125.08967993,203.04,202.97,2.59]
[1755967336792,125.08967993,203.04,202.98,1.9453953]
[1755967336993,125.08967993,203.04,203.0,2.59]
[1755967337193,125.08967993,203.04,203.01,1.9453953]
[1755967337394,125.08967993,203.04,203.02,1.9453953]
[1755967337595,125.08967993,203.04,203.01,2.59]
[1755967337795,125.08967993,203.04,203.02,1.94549491]
[1755967337998,125.08967993,203.04,203.01,2.59]
[1755967338193,125.08967993,203.04,203.02,1.94520196]
[1755967338398,125.08967993,203.04,203.03,1.94520196]
[1755967340603,125.08967993,203.04,203.03,4.53520196]
[1755967340799,125.08967993,203.04,203.03,4.53827573]
[1755967341000,125.08967993,203.04,203.03,1.94827573]
[1755967341197,120.0,203.04,203.03,1.94827573]
[1755967341500,120.0,203.04,203.03,6.86506466]
[1755967341902,120.0,203.04,203.03,6.86510741]
[1755967342499,120.0,203.04,203.03,4.91627241]
[1755967343107,5.08967993,203.05,203.03,4.91627241]
[1755967343300,5.08967993,203.05,203.04,4.91627241]
[1755967344504,125.08967993,203.05,203.04,4.91627241]
[1755967344901,5.08967993,203.05,203.04,4.91627241]
[1755967345106,125.08967993,203.05,203.04,4.91627241]
[1755967345403,125.06967993,203.05,203.04,4.91627241]
[1755967346706,119.98,203.05,203.04,4.91627241]
[1755967346914,125.06967993,203.05,203.04,4.91627241]
[1755967347409,5.08967993,203.05,203.04,4.91627241]
[1755967347610,125.06967993,203.05,203.04,4.91627241]
[1755967350711,125.06967993,203.05,203.04,4.92538795]
[1755967352206,5.08967993,203.05,203.04,4.92538795]
[1755967352413,125.06967993,203.05,203.04,4.92538795]
[1755967353013,125.06967993,203.05,203.04,6.87587058]
[1755967354311,125.06967993,203.05,203.04,9.42587058]
[1755967354613,125.06967993,203.05,203.04,6.87587058]
[1755967355109,5.08967993,203.07,203.05,2.55]
[1755967355316,125.06967993,203.07,203.06,4.92538795]
[1755967356016,125.06967993,203.07,203.06,6.87580605]
[1755967357212,119.98,203.07,203.06,9.42580605]
[1755967357710,5.08967993,203.1,203.08,4.9256]
[1755967357914,125.04967993,203.1,203.09,4.92538795]
[1755967360411,125.04967993,203.1,203.08,4.9256]
[1755967360611,125.04967993,203.1,203.09,4.92153655]
[1755967361314,5.08967993,203.1,203.09,6.86891763]
[1755967362113,125.04967993,203.11,203.09,11.79431763]
[1755967362319,119.96,203.11,203.1,4.92153655]
[1755967362520,125.04967993,203.11,203.1,4.92153655]
[1755967363016,125.02967993,203.11,203.1,4.92153655]
[1755967365226,125.02967993,203.11,203.07,4.9259]
[1755967365430,125.02967993,203.11,203.08,7.46355698]
[1755967365629,125.02967993,203.11,203.09,4.91355698]
[1755967365829,125.02967993,203.11,203.08,2.55]
[1755967366019,125.02967993,203.11,203.09,4.91355192]
[1755967366222,125.02967993,203.11,203.08,2.55]
[1755967366424,125.02967993,203.11,203.09,4.91314223]
[1755967366626,125.02967993,203.11,203.08,2.55]
[1755967366928,125.02967993,203.11,203.09,4.91272042]
[1755967367130,125.02967993,203.11,203.08,2.55]
[1755967367326,125.02967993,203.11,203.09,4.91252084]
[1755967367524,125.02967993,203.11,203.08,2.55]
[1755967367724,125.02967993,203.11,203.09,4.91237328]
[1755967367924,125.02967993,203.11,203.08,2.55]
[1755967368130,125.02967993,203.11,203.09,4.91237328]
[1755967368332,125.02967993,203.11,203.08,2.55]
[1755967371432,125.02967993,203.11,203.07,4.9259]
[1755967371629,125.02967993,203.11,203.08,4.91112868]
[1755967371830,125.02967993,203.11,203.07,7.4759]
[1755967372030,125.02967993,203.11,203.08,4.91112868]
[1755967372231,125.02967993,203.11,203.07,7.4759]
[1755967372532,125.02967993,203.11,203.08,4.91081083]
[1755967372732,125.02967993,203.11,203.07,7.4759]
[1755967373032,125.02967993,203.11,203.08,4.9311014]
[1755967373331,125.02967993,203.11,203.07,7.4759]
[1755967373531,125.02967993,203.11,203.08,4.93080203]
[1755967373732,125.02967993,203.11,203.07,7.4759]
[1755967373930,125.02967993,203.11,203.08,4.9305986]
[1755967374129,125.02967993,203.11,203.07,7.4759]
[1755967374330,125.02967993,203.11,203.08,4.9305986]
[1755967374532,125.02967993,203.11,203.07,7.4759]
[1755967374723,125.02967993,203.11,203.08,4.93044256]
[1755967374926,125.02967993,203.11,203.07,7.4759]
[1755967375127,125.02967993,203.11,203.08,4.93044256]
[1755967375433,125.02967993,203.11,203.08,4.9257]
[1755967380735,125.02967993,203.11,203.08,7.4757]
[1755967380935,0.85678411,203.15,203.1,2.55]
[1755967381129,0.85678411,203.15,203.05,2.55]
[1755967381130,119.9,203.14,203.05,2.55]
[1755967381334,5.08967993,203.13,203.07,2.55]
[1755967381529,5.08967993,203.13,203.06,6.87627294]
[1755967381530,5.08967993,203.14,203.09,2.55]
[1755967381840,119.9,203.13,203.1,4.93088123]
[1755967382139,5.08967993,203.17,203.15,4.9239]
[1755967382335,119.9,203.16,203.12,2.55]
[1755967382535,119.9,203.16,203.13,4.92767166]
[1755967382737,119.9,203.16,203.12,2.55]
[1755967383035,119.9,203.16,203.13,4.9275658]
[1755967383237,119.9,203.16,203.12,2.55]
[1755967383438,119.9,203.16,203.13,4.92662683]
[1755967383634,119.9,203.16,203.14,4.9242]
[1755967387742,119.88,203.15,203.14,4.9242]
[1755967388036,119.88,203.15,203.14,7.5242]
[1755967390448,119.88,203.15,203.14,4.9242]
[1755967392950,119.88,203.15,203.12,2.6]
[1755967394547,119.88,203.15,203.13,4.9245]
[1755967396649,5.08967993,203.14,203.07,2.6]
[1755967397849,119.88,203.15,203.07,2.6]
[1755967398050,124.96967993,203.15,203.12,4.9247]
[1755967398347,124.96967993,203.15,203.07,2.6]
[1755967399250,5.08967993,203.13,203.1,4.9252]
[1755967399450,119.84,203.12,203.1,4.9252]
[1755967402451,119.84,203.12,203.08,4.9257]
[1755967402647,5.08967993,203.11,203.09,4.92904993]
[1755967402851,5.08967993,203.11,203.04,24.6339]
[1755967403147,119.84,203.12,203.1,4.9252]
[1755967403352,119.84,203.12,203.11,4.90541052]
[1755967405059,5.08967993,203.13,203.11,4.90541052]
[1755967405251,119.84,203.12,203.1,4.9252]
[1755967405458,119.84,203.12,203.11,4.90497982]
[1755967408562,119.84,203.12,203.11,4.90110365]
[1755967409467,119.82,203.12,203.11,9.82600365]
[1755967409963,119.82,203.12,203.11,4.9249]
[1755967410165,119.82,203.12,203.11,9.82616774]
[1755967412066,0.85683684,203.15,203.13,4.9245]
[1755967412370,119.82,203.14,203.13,4.9245]
[1755967413670,119.82,203.14,203.11,4.925]
[1755967416568,119.82,203.14,203.02,24.6358]
[1755967416873,124.90967993,203.13,203.05,2.73]
[1755967417068,124.90967993,203.13,203.07,2.73]
[1755967417275,124.90967993,203.13,203.09,2.73]
[1755967417468,124.90967993,203.13,203.05,2.73]
[1755967417766,119.82,203.13,203.06,6.84533401]
[1755967417966,119.82,203.13,203.07,6.84533401]
[1755967418167,119.82,203.13,203.1,4.9252]
[1755967418567,124.90967993,203.13,203.06,2.73]
[1755967418872,124.90967993,203.13,203.07,4.90356267]
[1755967419068,124.90967993,203.13,203.09,4.9254]
[1755967424263,119.82,203.13,203.11,4.9249]
[1755967425974,119.82,203.13,203.09,4.9254]
[1755967426176,5.08967993,203.12,203.09,4.9254]
[1755967426471,5.08967993,203.12,203.04,2.73]
[1755967426675,5.08967993,203.1,203.07,4.926]
[1755967428569,119.82,203.13,203.05,4.9264]
[1755967428871,5.08967993,203.09,203.06,4.90830131]
[1755967429174,119.8,203.08,203.05,4.9264]
[1755967429571,119.8,203.08,202.98,5.08967993]
[1755967429572,119.8,203.08,203.03,4.9269]
[1755967429775,119.8,203.08,203.04,4.90785471]
[1755967429972,119.8,203.08,203.05,4.90785471]
[1755967430171,119.8,203.08,203.03,2.73]
[1755967430366,119.8,203.08,202.99,2.73]
[1755967430367,5.08967993,203.07,202.99,2.73]
[1755967430571,5.08967993,203.07,203.0,6.85526685]
[1755967430772,5.08967993,203.07,203.01,6.85526685]
[1755967430966,5.08967993,203.07,203.02,7.63760678]
[1755967431173,5.08967993,203.07,203.03,9.83450678]
[1755967431376,5.08967993,203.07,203.03,7.6569]
[1755967431774,5.08967993,203.07,203.05,2.73]
[1755967431976,119.8,203.08,203.06,2.73]
[1755967432780,119.8,203.08,203.07,2.73]
[1755967433379,119.8,203.08,203.06,4.9262]
[1755967433575,119.8,203.08,203.06,7.6562]
[1755967434282,0.85695289,203.13,203.07,2.73]
[1755967434483,119.82,203.11,203.07,2.73]
[1755967435182,5.08967993,203.12,203.07,2.73]
[1755967435376,124.90967993,203.12,203.07,2.73]
[1755967435581,124.90967993,203.12,203.09,4.9254]
[1755967436176,5.08967993,203.1,203.07,7.6559]
[1755967436784,5.08967993,203.1,203.07,4.9259]
[1755967437981,5.08967993,203.1,203.04,2.73]
[1755967437982,5.08967993,203.08,203.05,4.9264]
[1755967438175,5.08967993,203.08,203.05,7.6564]
[1755967440886,5.08967993,203.08,203.06,4.9262]
[1755967442489,5.08967993,203.08,203.07,4.87122643]
[1755967443690,5.08967993,203.08,203.06,4.9262]
[1755967443894,5.08967993,203.08,203.07,4.87236523]
[1755967444895,5.08967993,203.08,203.06,4.9262]
[1755967446191,4.9252,203.11,203.06,4.9262]
[1755967446391,5.08967993,203.08,203.06,7.6362]
[1755967447390,119.82,203.12,203.07,4.9259]
[1755967447693,5.08967993,203.1,203.07,7.6359]
[1755967448687,119.8,203.12,203.08,9.79598181]
[1755967448893,119.8,203.12,203.08,4.9257]
[1755967449091,5.08967993,203.11,203.08,4.9257]
[1755967450791,5.08967993,203.11,203.07,2.71]
[1755967452588,5.08967993,203.11,203.07,7.6359]
[1755967455194,5.08967993,203.11,203.07,4.9259]
[1755967456195,5.08967993,203.11,203.07,7.6359]
[1755967456590,5.08967993,203.08,203.05,4.9265]
[1755967456894,5.08967993,203.06,203.04,2.71]
[1755967457394,5.08967993,203.06,203.05,4.87557827]
[1755967459297,5.08967993,203.06,203.02,2.71]
[1755967459496,5.08967993,203.06,203.03,4.87700249]
[1755967459691,5.08967993,203.06,203.04,4.87700249]
[1755967459994,5.08967993,203.05,203.02,2.71]
[1755967460197,5.08967993,203.05,203.03,4.87763977]
[1755967460393,5.08967993,203.05,203.02,2.71]
[1755967460594,5.08967993,203.05,203.03,7.58759851]
[1755967460799,5.08967993,203.05,203.03,2.71]
[1755967461501,5.08967993,203.05,203.03,7.6369]
[1755967462597,5.08967993,203.05,203.04,4.87756302]
[1755967465106,5.08967993,203.05,203.04,7.58756302]
[1755967465900,5.08967993,203.05,203.04,7.58366714]
[1755967466609,5.08967993,203.05,203.04,7.58350174]
[1755967469806,5.08967993,203.07,203.05,7.6364]
[1755967470012,5.08967993,203.07,203.02,2.71]
[1755967470217,5.08967993,203.07,203.03,6.81947886]
[1755967470417,5.08967993,203.07,203.04,6.81947886]
[1755967470617,5.08967993,203.07,203.06,2.71]
[1755967471112,5.08967993,203.08,203.07,4.9259]
[1755967474222,119.78,203.09,203.07,4.9259]
[1755967474414,124.86967993,203.09,203.08,2.57]
[1755967474816,5.08967993,203.11,203.04,2.57]
[1755967475011,124.86967993,203.11,203.06,2.57]
[1755967475214,124.86967993,203.11,203.08,2.57]
[1755967475413,124.86967993,203.11,203.1,7.4952]
[1755967476528,5.08967993,203.15,203.12,2.57]
[1755967476723,124.86967993,203.15,203.12,2.57]
[1755967476917,124.86967993,203.15,203.08,2.57]
[1755967477119,124.86967993,203.15,203.13,7.4944]
[1755967477611,119.78,203.15,203.14,2.57]
[1755967478431,119.78,203.15,203.14,7.57700253]
[1755967479420,119.78,203.15,203.14,2.57]
[1755967479623,119.78,203.15,203.13,4.9244]
[1755967480323,5.08967993,203.17,203.15,4.9241]
[1755967480523,119.76,203.16,203.15,4.9241]
[1755967481122,5.08967993,203.17,203.15,4.9241]
[1755967481325,119.76,203.16,203.15,4.9241]
[1755967482925,5.08967993,203.17,203.15,4.9241]
[1755967483124,119.74,203.16,203.15,4.9241]
[1755967483828,5.08967993,203.17,203.15,4.9241]
[1755967484026,119.74,203.18,203.15,7.4941]
[1755967484323,119.74,203.18,203.17,4.9236]
[1755967487323,119.74,203.18,203.15,4.924]
[1755967490038,119.74,203.18,203.11,2.57]
[1755967490324,124.82967993,203.18,203.11,2.57]
[1755967491530,124.82967993,203.18,203.15,4.9239]
[1755967492431,5.08967993,203.18,203.15,4.9239]